bitfinex/quotes_BTCUSD_20250114
["timestamp","ask_amount","ask_price","bid_price","bid_amount"]
[1736886475073,0.00014824,96940.0,96939.0,0.30212692]
[1736886475268,0.00014824,96940.0,96939.0,0.38342692]
[1736886475476,0.03,96948.0,96947.0,0.537598]
[1736886475700,0.03049477,96948.0,96947.0,0.78388441]
[1736886476053,0.00049477,96948.0,96947.0,0.80505759]
[1736886476858,0.00049477,96948.0,96947.0,0.81305759]
[1736886477055,0.00149477,96948.0,96947.0,0.81305759]
[1736886477636,0.00149477,96948.0,96947.0,0.86095759]
[1736886478255,0.00149477,96948.0,96947.0,0.85295759]
[1736886478256,7.7e-07,96948.0,96947.0,0.85295759]
[1736886478629,7.7e-07,96948.0,96947.0,2.35995759]
[1736886478830,0.00100077,96948.0,96947.0,2.36895759]
[1736886480178,0.00100077,96948.0,96947.0,0.86895759]
[1736886480383,0.00185437,96948.0,96947.0,0.86895759]
[1736886480860,3.7e-07,96948.0,96947.0,0.86895759]
[1736886481537,0.206173,97006.0,96959.0,0.556272]
[1736886481745,1e-07,96960.0,96959.0,0.79099892]
[1736886481961,0.0797543,97019.0,97005.0,0.206173]
[1736886482170,0.0797543,97019.0,97006.0,0.206172]
[1736886482377,0.00014843,97007.0,97006.0,0.205272]
[1736886482582,0.00014843,97007.0,97006.0,0.0411448]
[1736886483928,0.00014843,97007.0,97006.0,0.06156992]
[1736886484159,0.00014843,97007.0,97006.0,0.0411448]
[1736886484395,0.00014843,97007.0,97006.0,0.14637172]
[1736886484601,0.00014843,97007.0,97006.0,0.3066461]
[1736886484817,0.00014843,97007.0,97006.0,0.4056461]
[1736886485023,0.00014843,97007.0,97006.0,0.4086461]
[1736886485226,0.00014843,97007.0,97006.0,0.4126461]
[1736886485455,0.00014843,97007.0,97006.0,0.3086461]
[1736886485656,0.00014843,97007.0,97006.0,0.3056461]
[1736886485862,0.00014843,97007.0,97006.0,0.3176461]
[1736886486064,0.00014843,97007.0,97006.0,0.3096461]
[1736886486484,0.00014843,97007.0,97006.0,0.3146461]
[1736886486956,0.00014843,97007.0,97006.0,0.3186461]
[1736886487611,0.00014843,97007.0,97006.0,0.3096461]
[1736886488017,0.00014843,97007.0,97006.0,0.3166461]
[1736886489018,0.00014843,97007.0,97006.0,0.3157461]
[1736886491418,0.00014843,97007.0,97006.0,0.3087461]
[1736886491626,0.00014843,97007.0,97006.0,0.3177461]
[1736886491827,0.00014843,97007.0,97006.0,0.3137461]
[1736886492163,0.00014843,97007.0,97006.0,0.3187461]
[1736886493233,0.00100113,97007.0,97006.0,0.3187461]
[1736886493428,0.00100113,97007.0,97006.0,0.4187461]
[1736886493633,0.00100113,97007.0,97006.0,0.3785013]
[1736886493811,0.00100113,97007.0,97006.0,0.36822692]
[1736886494245,0.00100113,97007.0,97006.0,0.114]
[1736886495289,0.00100113,97007.0,97006.0,0.320172]
[1736886495711,0.00100113,97007.0,97006.0,0.114]
[1736886497607,0.02171794,97007.0,97006.0,0.114]
[1736886497850,0.026465,97007.0,97006.0,0.114]
[1736886498077,0.08854819,97007.0,97006.0,0.1]
[1736886498273,0.08854819,97007.0,97006.0,0.101]
[1736886498824,0.08854819,97007.0,97006.0,0.1]
[1736886499032,0.08854819,97007.0,97006.0,0.101]
[1736886502420,0.206167,97009.0,97006.0,0.101]
[1736886502625,0.00475294,97007.0,97006.0,0.101]
[1736886502841,0.206167,97009.0,97006.0,0.101]
[1736886503006,0.412334,97009.0,97006.0,0.101]
[1736886504269,0.412334,97009.0,97006.0,0.1]
[1736886504472,0.413334,97009.0,97006.0,0.1]
[1736886504680,0.413334,97009.0,97006.0,0.101]
[1736886505019,0.413334,97009.0,97006.0,0.10279067]
[1736886505220,0.4141867,97009.0,97006.0,0.10279067]
[1736886506130,0.0018527,97009.0,97006.0,0.10279067]
[1736886507303,0.2080207,97009.0,97006.0,0.10279067]
[1736886509210,0.04141807,97008.0,97006.0,0.10279067]
[1736886509705,0.20617,97007.0,97006.0,0.10279067]
[1736886511226,0.20617,97007.0,97006.0,0.10179067]
[1736886511558,0.20617,97007.0,97006.0,0.10279067]
[1736886512016,0.20617,97007.0,97006.0,0.10179067]
[1736886513222,0.20917,97007.0,97006.0,0.10179067]
[1736886513602,0.20617,97007.0,97006.0,0.10179067]
[1736886513796,0.21017,97007.0,97006.0,0.10179067]
[1736886518575,0.004,97007.0,97006.0,0.10179067]
[1736886520327,0.0008527,97009.0,97006.0,0.10179067]
[1736886521086,0.002,97007.0,97006.0,0.10179067]
[1736886521289,0.20617,97007.0,97006.0,0.10179067]
[1736886523927,0.20817,97007.0,97006.0,0.10179067]
[1736886524127,0.002,97007.0,97006.0,0.10179067]
[1736886524384,0.006,97007.0,97006.0,0.18369067]
[1736886524793,0.006,97007.0,97006.0,0.10179067]
[1736886525199,0.0008527,97009.0,97006.0,0.10179067]
[1736886526943,0.0008527,97009.0,97006.0,0.10279067]
[1736886527143,0.0008527,97009.0,97006.0,0.51513367]
[1736886527349,0.0008527,97009.0,97006.0,0.51413367]
[1736886527498,0.0008527,97009.0,97006.0,0.30796167]
[1736886527679,0.0038527,97009.0,97006.0,0.30796167]
[1736886528129,0.0008527,97009.0,97006.0,0.30796167]
[1736886528286,0.0018527,97009.0,97006.0,0.30796167]
[1736886528640,0.0008527,97009.0,97006.0,0.10279067]
[1736886529385,0.0008527,97009.0,97006.0,0.10379067]
[1736886529810,0.0008527,97009.0,97006.0,0.10279067]
[1736886530015,0.0008527,97009.0,97006.0,0.10379067]
[1736886531826,0.0008527,97009.0,97006.0,0.10299067]
[1736886532451,0.01701478,97009.0,97006.0,0.10299067]
[1736886532859,0.0008527,97009.0,97006.0,0.10299067]
[1736886533033,0.0008527,97009.0,97006.0,0.10199067]
[1736886533358,0.0008527,97009.0,97006.0,0.10299067]
[1736886533733,0.0008527,97009.0,97006.0,0.10199067]
[1736886534158,0.0018527,97009.0,97006.0,0.10199067]
[1736886534367,0.02080057,97008.0,97006.0,0.10199067]
[1736886534819,0.206169,97008.0,97006.0,0.10199067]
[1736886535572,0.10551555,97007.0,97006.0,0.10199067]
[1736886535803,0.10422692,97007.0,97006.0,0.10199067]
[1736886536583,0.10422692,97007.0,97006.0,0.10099067]
[1736886536785,0.10422692,97007.0,97006.0,0.10199067]
[1736886536978,0.16192625,97007.0,97006.0,0.10199067]
[1736886537382,0.10422692,97007.0,97006.0,0.10099067]
[1736886538148,0.10822692,97007.0,97006.0,0.10099067]
[1736886538485,0.10822692,97007.0,97006.0,0.10019067]
[1736886542355,0.12439113,97007.0,97006.0,0.10019067]
[1736886542762,0.02016421,97007.0,97006.0,0.10019067]
[1736886542970,0.004,97007.0,97006.0,0.17899067]
[1736886543860,0.0008527,97009.0,97007.0,0.20617]
[1736886544335,0.0008527,97009.0,97006.0,0.18099067]
[1736886544845,0.0008527,97009.0,97006.0,0.18299067]
[1736886545226,0.0008527,97009.0,97006.0,0.18099067]
[1736886545449,0.0008527,97009.0,97006.0,0.17899067]
[1736886546661,0.02155307,97009.0,97006.0,0.17999067]
[1736886546875,0.0008527,97009.0,97006.0,0.10119067]
[1736886547126,0.206168,97008.0,97006.0,0.10119067]
[1736886547362,0.206168,97008.0,97007.0,0.001]
[1736886547796,0.2284864,97008.0,97007.0,0.001]
[1736886548455,0.2284864,97008.0,97006.0,0.10019067]
[1736886549412,0.10422692,97007.0,97006.0,0.10019067]
[1736886550690,0.11038692,97007.0,97006.0,0.10019067]
[1736886551086,0.0008527,97009.0,97006.0,0.10019067]
[1736886551307,0.005,97007.0,97006.0,0.10019067]
[1736886551500,0.001,97007.0,97006.0,0.10019067]
[1736886551699,0.2070207,97009.0,97006.0,0.10019067]
[1736886551920,0.0078527,97007.0,97006.0,0.10119067]
[1736886553373,0.0098527,97007.0,97006.0,0.10119067]
[1736886553605,0.0098527,97007.0,97006.0,0.17999067]
[1736886554192,0.0098527,97007.0,97006.0,0.17899067]
[1736886554411,0.0008527,97007.0,97006.0,0.17899067]
[1736886554599,0.0028527,97007.0,97006.0,0.17899067]
[1736886554832,0.0008527,97007.0,97006.0,0.17899067]
[1736886555237,0.0008527,97007.0,97006.0,0.17999067]
[1736886556392,0.0008527,97007.0,97006.0,0.18199067]
[1736886560294,0.0008527,97007.0,97006.0,0.10319067]
[1736886560962,0.0008527,97007.0,97006.0,0.10019067]
[1736886561125,0.0008527,97007.0,97006.0,0.10119067]
[1736886561350,0.0008527,97007.0,97006.0,0.10219067]
[1736886561545,0.0008527,97007.0,97006.0,0.10119067]
[1736886561986,0.0028527,97007.0,97006.0,0.10119067]
[1736886562139,0.0008527,97007.0,97006.0,0.10119067]
[1736886562388,0.0008527,97007.0,97006.0,0.10019067]
[1736886563541,0.0048527,97007.0,97006.0,0.10019067]
[1736886563753,0.0048527,97007.0,97006.0,0.17979067]
[1736886564166,0.0068527,97007.0,97006.0,0.17979067]
[1736886564338,0.0008527,97007.0,97006.0,0.22809067]
[1736886564750,0.0008527,97007.0,97006.0,0.23109067]
[1736886565144,0.0008527,97007.0,97006.0,0.42028036]
[1736886565829,0.0008527,97007.0,97006.0,0.42228036]
[1736886567520,0.0008527,97007.0,97006.0,0.23309067]
[1736886568684,0.0008527,97007.0,97006.0,0.18479067]
[1736886568893,0.0008527,97007.0,97006.0,0.10519067]
[1736886569124,0.0008527,97007.0,97006.0,0.10319067]
[1736886569470,0.0008527,97007.0,97006.0,0.10519067]
[1736886570263,0.0008527,97007.0,97006.0,0.10219067]
[1736886570471,0.0008527,97007.0,97006.0,0.10419067]
[1736886586545,0.0008527,97007.0,97006.0,0.23349067]
[1736886586752,0.0008527,97007.0,97006.0,0.33771759]
[1736886588286,0.0008527,97007.0,97006.0,0.34803168]
[1736886589904,0.0008536,97020.0,97009.0,0.0007746]
[1736886590130,0.0008536,97020.0,97010.0,0.206164]
[1736886590832,0.0008536,97020.0,97011.0,0.206162]
[1736886591154,0.0038543,97019.0,97011.0,0.206162]
[1736886591791,0.0068543,97019.0,97014.0,0.206153]
[1736886591962,0.0008543,97019.0,97014.0,0.206153]
[1736886593112,0.0028543,97019.0,97014.0,0.206153]
[1736886593495,0.0008543,97019.0,97014.0,0.206153]
[1736886594095,0.0008543,97019.0,97011.0,0.206162]
[1736886594272,0.0028543,97019.0,97011.0,0.206162]
[1736886595227,0.0008543,97019.0,97011.0,0.206162]
[1736886595631,0.0008543,97019.0,97014.0,0.206154]
[1736886596382,0.0028543,97019.0,97014.0,0.206154]
[1736886596585,0.0008543,97019.0,97014.0,0.206154]
[1736886597340,0.0028543,97019.0,97014.0,0.206154]
[1736886597957,0.0028543,97019.0,97012.0,0.20616]
[1736886599198,0.0028543,97019.0,97010.0,0.206163]
[1736886599199,0.00414271,97019.0,97009.0,0.0007746]
[1736886599378,0.02298486,97018.0,97009.0,0.0991746]
[1736886599729,0.0028543,97019.0,97009.0,0.0991746]
[1736886599943,0.0008543,97019.0,97009.0,0.0991746]
[1736886600362,0.0028543,97019.0,97010.0,0.206164]
[1736886600586,0.0028543,97019.0,97009.0,0.1001746]
[1736886600792,0.0028543,97019.0,97014.0,0.206155]
[1736886600990,0.0008543,97019.0,97010.0,0.206164]
[1736886601194,0.0008543,97019.0,97014.0,0.206155]
[1736886601398,0.0028543,97019.0,97014.0,0.206155]
[1736886601615,0.0028543,97019.0,97014.0,0.206154]
[1736886601869,0.0028543,97019.0,97011.0,0.206162]
[1736886602121,0.0028543,97019.0,97012.0,0.20616]
[1736886602523,0.0028543,97019.0,97013.0,0.206157]
[1736886602762,0.0028543,97019.0,97012.0,0.30456]
[1736886603172,0.0008543,97019.0,97015.0,0.206151]
[1736886603393,0.0008543,97019.0,97016.0,0.05114826]
[1736886603575,0.0028543,97019.0,97017.0,0.205649]
[1736886603801,0.0008543,97019.0,97018.0,0.25422692]
[1736886604071,0.0008543,97019.0,97018.0,0.0759]
[1736886604278,0.0008543,97019.0,97012.0,0.0984]
[1736886604494,0.0028543,97019.0,97012.0,0.0984]
[1736886604704,0.0028543,97019.0,97018.0,0.18551429]
[1736886604911,0.0008543,97019.0,97018.0,0.18551429]
[1736886605337,0.0008543,97019.0,97018.0,0.19051429]
[1736886605735,0.0008543,97019.0,97018.0,0.005]
[1736886605944,0.00214279,97019.0,97018.0,0.005]
[1736886606721,0.0008543,97019.0,97018.0,0.005]
[1736886607120,0.229147,97018.0,97017.0,0.0984]
[1736886607313,0.49498286,97018.0,97017.0,0.0981]
[1736886607944,0.54008286,97018.0,97017.0,0.0981]
[1736886608140,0.69008286,97018.0,97017.0,0.0981]
[1736886608344,0.89508286,97018.0,97017.0,0.0981]
[1736886608744,0.89008286,97018.0,97017.0,0.0966]
[1736886608965,0.89008286,97018.0,97017.0,0.095]
[1736886609148,0.89008286,97018.0,97017.0,0.0947]
[1736886609585,0.89108286,97018.0,97017.0,0.0947]
[1736886609780,1.37044461,97018.0,97017.0,0.0947]
[1736886609987,1.36944461,97018.0,97017.0,0.0947]
[1736886610235,1.36944461,97018.0,97017.0,0.05347]
[1736886610442,1.38144461,97018.0,97017.0,0.05447]
[1736886610641,2.02858153,97018.0,97017.0,0.05347]
[1736886610839,0.456164,97010.0,97009.0,0.00256716]
[1736886611048,0.78272332,97010.0,97009.0,0.00256716]
[1736886611646,0.88272332,97010.0,97009.0,0.00256716]
[1736886612276,0.88672332,97010.0,97009.0,0.00356716]
[1736886612476,1.23699131,97010.0,97009.0,0.00356716]
[1736886612833,1.25782635,97010.0,97009.0,0.00356716]
[1736886613041,1.23299131,97010.0,97009.0,0.00356716]
[1736886613577,1.22899131,97010.0,97009.0,0.00256716]
[1736886614123,1.23299131,97010.0,97009.0,0.00356716]
[1736886614533,1.23299131,97010.0,96958.0,0.206273]
[1736886614534,0.206236,96977.0,96959.0,0.01225283]
[1736886614758,0.00616,96983.0,96972.0,0.07604843]
[1736886614963,0.00616,96983.0,96973.0,0.206242]
[1736886615605,0.00616,96983.0,96972.0,0.07604843]
[1736886616035,0.02265545,96982.0,96972.0,0.07604843]
[1736886616413,0.02265545,96982.0,96972.0,0.00014843]
[1736886616610,0.206225,96981.0,96972.0,0.00014843]
[1736886616861,0.20751405,96981.0,96972.0,0.00014843]
[1736886617280,0.206236,96977.0,96972.0,0.00014843]
[1736886617520,0.04422766,96976.0,96972.0,0.00014843]
[1736886617770,0.20752705,96975.0,96972.0,0.00014843]
[1736886618528,0.208235,96977.0,96972.0,0.00014843]
[1736886618733,0.00128906,96976.0,96972.0,0.00014843]
[1736886619009,0.206238,96975.0,96972.0,0.00014843]
[1736886619438,0.00128906,96974.0,96972.0,0.00014843]
[1736886619837,0.24781821,96973.0,96972.0,0.00014843]
[1736886620040,0.24781821,96973.0,96972.0,0.00114843]
[1736886621233,0.206242,96973.0,96972.0,0.00114843]
[1736886621473,0.206242,96973.0,96972.0,0.0019412]
[1736886621648,0.206242,96973.0,96972.0,0.0029412]
[1736886621854,0.209242,96973.0,96972.0,0.0029412]
[1736886622061,0.209242,96973.0,96972.0,0.0019412]
[1736886622282,0.35732733,96973.0,96972.0,0.0019412]
[1736886622487,0.35603821,96973.0,96972.0,0.0019412]
[1736886622637,0.37903821,96973.0,96972.0,0.0019412]
[1736886623065,0.25181129,96973.0,96972.0,0.0019412]
[1736886623267,0.216402,96973.0,96972.0,0.0019412]
[1736886623712,0.213402,96973.0,96972.0,0.0019412]
[1736886623927,0.00228917,96973.0,96972.0,0.0019412]
[1736886624125,0.006,96973.0,96972.0,0.0811412]
[1736886624374,0.001,96973.0,96972.0,0.0811412]
[1736886624700,0.007,96973.0,96972.0,0.0821412]
[1736886624904,0.004,96973.0,96972.0,0.0019412]
[1736886625320,0.13122692,96973.0,96972.0,0.0019412]
[1736886625589,0.16869181,96973.0,96972.0,0.0019412]
[1736886625791,0.16969181,96973.0,96972.0,0.0019412]
[1736886626102,0.16869181,96973.0,96972.0,0.0019412]
[1736886626313,0.16569181,96973.0,96972.0,0.0019412]
[1736886626752,0.16769181,96973.0,96972.0,0.0019412]
[1736886626963,0.16569181,96973.0,96972.0,0.0019412]
[1736886627309,0.16969181,96973.0,96972.0,0.0019412]
[1736886627512,0.17984178,96973.0,96972.0,0.0019412]
[1736886628408,0.01643916,96973.0,96972.0,0.0019412]
[1736886628609,0.005,96973.0,96972.0,0.0811412]
[1736886629016,0.00628907,96973.0,96972.0,0.0019412]
[1736886629189,0.004,96973.0,96972.0,0.0019412]
[1736886629610,0.001,96973.0,96972.0,0.0019412]
[1736886629813,0.17031934,96973.0,96972.0,0.0019412]
[1736886630017,0.17431934,96973.0,96972.0,0.0019412]
[1736886630466,0.17431934,96973.0,96972.0,0.0002412]
[1736886630678,0.17031934,96973.0,96972.0,0.0002412]
[1736886630888,0.16931934,96973.0,96972.0,0.0002412]
[1736886631085,0.17460863,96973.0,96972.0,0.0002412]
[1736886631492,0.13251621,96973.0,96972.0,0.0002412]
[1736886632118,0.13351621,96973.0,96972.0,0.0002412]
[1736886644208,0.38351621,96973.0,96972.0,0.0002412]
[1736886644610,0.51152692,96973.0,96972.0,0.0002412]
[1736886645181,0.51052692,96973.0,96972.0,0.0002412]
[1736886645403,0.53174311,96973.0,96972.0,0.0002412]
[1736886645616,0.28122692,96973.0,96972.0,0.0002412]
[1736886645831,0.28824092,96973.0,96972.0,0.0002412]
[1736886646244,0.28424092,96973.0,96972.0,0.0002412]
[1736886646471,0.29324092,96973.0,96972.0,0.0012412]
[1736886646692,0.29724092,96973.0,96972.0,0.0012412]
[1736886646904,0.49746764,96973.0,96972.0,0.0012412]
[1736886649377,0.57836764,96973.0,96972.0,0.0012412]
[1736886650590,0.72826764,96973.0,96972.0,2e-07]
[1736886650785,0.435528,96963.0,96959.0,0.00059087]
[1736886651005,0.023,96961.0,96959.0,0.00059087]
[1736886651243,0.27851638,96960.0,96959.0,0.00059087]
[1736886651445,0.27722692,96960.0,96959.0,0.00059087]
[1736886652248,0.27722692,96960.0,96959.0,0.00159087]
[1736886653221,0.61846349,96960.0,96959.0,8.7e-07]
[1736886653392,0.206332,96931.0,96930.0,0.0816]
[1736886653554,0.33971892,96931.0,96930.0,0.0756]
[1736886654531,0.33355892,96931.0,96930.0,0.0756]
[1736886654731,0.00616,96931.0,96930.0,0.0756]
[1736886654942,0.01416,96931.0,96930.0,0.07709477]
[1736886655101,0.008,96931.0,96930.0,0.13250425]
[1736886655309,0.008,96931.0,96930.0,0.12479477]
[1736886655725,0.01,96931.0,96930.0,0.12479477]
[1736886656542,0.002,96931.0,96930.0,0.12379477]
[1736886656955,0.00616,96942.0,96930.0,0.12379477]
[1736886657151,0.00616,96942.0,96930.0,0.12579477]
[1736886657445,0.00616,96942.0,96930.0,0.12758817]
[1736886657446,0.004,96931.0,96930.0,0.12758817]
[1736886657647,0.206313,96940.0,96930.0,0.12558817]
[1736886657853,0.206313,96940.0,96930.0,0.12758817]
[1736886658886,0.41263,96939.0,96930.0,0.12758817]
[1736886659088,0.206315,96939.0,96930.0,0.12758817]
[1736886659287,0.206319,96937.0,96930.0,0.12758817]
[1736886659585,0.206319,96937.0,96930.0,0.12558817]
[1736886660403,0.209319,96937.0,96930.0,0.12558817]
[1736886660609,0.206329,96933.0,96930.0,0.07788817]
[1736886661031,0.003,96937.0,96930.0,0.07788817]
[1736886661656,0.003,96937.0,96932.0,0.0825]
[1736886661817,0.003,96937.0,96934.0,0.206325]
[1736886662010,0.003,96937.0,96936.0,0.206321]
[1736886662229,0.003,96937.0,96936.0,0.0825]
[1736886662629,0.206308,96943.0,96936.0,0.0825]
[1736886662827,0.412632,96939.0,96936.0,0.0825]
[1736886663024,0.023,96938.0,96936.0,0.0825]
[1736886663477,0.206319,96937.0,96936.0,0.0855]
[1736886663686,0.54115548,96937.0,96934.0,0.002]
[1736886663867,0.206323,96935.0,96934.0,0.002]
[1736886664061,0.33354992,96935.0,96930.0,0.00228817]
[1736886664270,0.206332,96931.0,96930.0,0.00228817]
[1736886664635,0.229332,96931.0,96930.0,0.00168817]
[1736886664825,0.227332,96931.0,96930.0,0.00168817]
[1736886665161,0.36132825,96931.0,96930.0,0.00168817]
[1736886666391,0.36132825,96931.0,96930.0,0.00268817]
[1736886666505,0.36632825,96931.0,96930.0,0.00268817]
[1736886666919,0.36732825,96931.0,96930.0,0.00268817]
[1736886668212,0.33755892,96931.0,96930.0,0.00268817]
[1736886668365,0.34371892,96931.0,96930.0,0.00268817]
[1736886669012,0.49371892,96931.0,96930.0,0.00268817]
[1736886669206,0.49371892,96931.0,96930.0,0.00168817]
[1736886669895,0.58507605,96931.0,96930.0,0.00168817]
[1736886670028,0.69130297,96931.0,96930.0,0.00168817]
[1736886670397,0.68630297,96931.0,96930.0,0.00068817]
[1736886670610,0.69430297,96931.0,96930.0,0.00168817]
[1736886670820,0.49771892,96931.0,96930.0,0.00168817]
[1736886671429,0.59771892,96931.0,96930.0,0.00168817]
[1736886672215,0.61389846,96931.0,96930.0,0.00168817]
[1736886672781,0.59771892,96931.0,96930.0,0.00168817]
[1736886672978,0.70194584,96931.0,96930.0,0.00168817]
[1736886673187,0.74814584,96931.0,96930.0,0.00168817]
[1736886673991,0.74614584,96931.0,96930.0,0.00168817]
[1736886674193,0.60071892,96931.0,96930.0,0.00168817]
[1736886675059,0.59271892,96931.0,96930.0,0.00068817]
[1736886675799,0.60171892,96931.0,96930.0,0.00068817]
[1736886676010,0.61789867,96931.0,96930.0,0.00068817]
[1736886676220,0.61789867,96931.0,96930.0,8.817e-05]
[1736886676369,0.72212559,96931.0,96930.0,8.817e-05]
[1736886676778,0.72212559,96931.0,96908.0,0.00179067]
[1736886676779,0.206372,96912.0,96908.0,0.00179067]
[1736886676978,0.33488903,96912.0,96911.0,0.0019408]
[1736886677191,0.33359892,96912.0,96911.0,0.0019408]
[1736886677442,0.64759521,96912.0,96911.0,0.0019408]
[1736886677867,0.65259521,96912.0,96911.0,0.0019408]
[1736886678995,0.66159521,96912.0,96911.0,0.0019408]
[1736886679189,0.65659521,96912.0,96911.0,4.08e-05]
[1736886679390,0.84049521,96912.0,96911.0,4.08e-05]
[1736886679772,0.889149,96912.0,96911.0,4.08e-05]
[1736886679977,0.894149,96912.0,96911.0,4.08e-05]
[1736886680399,0.888149,96912.0,96911.0,4.08e-05]
[1736886680779,0.885149,96912.0,96911.0,4.08e-05]
[1736886680980,0.885149,96912.0,96908.0,0.00123147]
[1736886680981,0.1,96909.0,96908.0,0.00123147]
[1736886681253,0.37851711,96909.0,96908.0,0.00123147]
[1736886681385,0.37722692,96909.0,96908.0,0.00123147]
[1736886682290,0.38622692,96909.0,96908.0,0.00123147]
[1736886683695,0.37722692,96909.0,96908.0,0.00123147]
[1736886683901,0.47745364,96909.0,96908.0,0.00123147]
[1736886684273,0.48245364,96909.0,96908.0,0.00123147]
[1736886684477,0.38222692,96909.0,96908.0,0.00123147]
[1736886685092,0.39122692,96909.0,96908.0,0.00123147]
[1736886685250,0.38222692,96909.0,96908.0,0.00123147]
[1736886685657,0.39122692,96909.0,96908.0,0.00123147]
[1736886685859,0.1,96906.0,96905.0,7.68e-06]
[1736886686059,0.38467713,96906.0,96905.0,7.68e-06]
[1736886686267,0.38338692,96906.0,96905.0,7.68e-06]
[1736886686694,0.48761384,96906.0,96905.0,7.68e-06]
[1736886687072,0.49261384,96906.0,96905.0,7.68e-06]
[1736886687586,0.38838692,96906.0,96905.0,7.68e-06]
[1736886688030,0.48838692,96906.0,96905.0,7.68e-06]
[1736886688273,0.49738692,96906.0,96905.0,7.68e-06]
[1736886689037,0.48838692,96906.0,96905.0,7.68e-06]
[1736886689298,0.58470836,96906.0,96905.0,7.68e-06]
[1736886689564,0.58470836,96906.0,96881.0,0.0824]
[1736886689565,0.206436,96882.0,96881.0,0.0824]
[1736886689836,0.206436,96882.0,96846.0,0.00179235]
[1736886689837,0.379449,96876.0,96870.0,0.0824]
[1736886690085,0.48367592,96876.0,96875.0,0.00194105]
[1736886691646,0.229449,96876.0,96875.0,0.00194105]
[1736886691852,0.206446,96878.0,96877.0,0.0824]
[1736886692066,0.24875925,96878.0,96877.0,0.0824]
[1736886692284,0.25491925,96878.0,96877.0,0.0824]
[1736886692494,0.212606,96878.0,96877.0,0.0824]
[1736886692908,0.21668648,96881.0,96877.0,0.0824]
[1736886692909,0.20644,96881.0,96877.0,0.0824]
[1736886693145,0.00616,96880.0,96877.0,0.0824]
[1736886693492,0.206443,96879.0,96877.0,0.0824]
[1736886693703,0.001,96878.0,96877.0,0.0824]
[1736886693916,0.0430043,96878.0,96877.0,0.0824]
[1736886694121,0.001,96878.0,96877.0,0.0824]
[1736886694316,0.41288,96881.0,96877.0,0.0824]
[1736886694650,0.007,96878.0,96877.0,0.0824]
[1736886695351,0.20644,96881.0,96877.0,0.0824]
[1736886695603,0.21544,96881.0,96877.0,0.0824]
[1736886695858,0.20644,96881.0,96877.0,0.0824]
[1736886696052,0.206392,96903.0,96877.0,0.0824]
[1736886696254,0.001,96878.0,96877.0,0.0824]
[1736886696646,0.007,96878.0,96877.0,0.0824]
[1736886697788,0.11738692,96878.0,96877.0,0.0844]
[1736886697929,0.11038692,96878.0,96877.0,0.0844]
[1736886698522,0.13338692,96878.0,96877.0,0.0844]
[1736886698756,0.14038692,96878.0,96877.0,0.0844]
[1736886699014,0.18871321,96878.0,96877.0,0.0824]
[1736886699217,0.13338692,96878.0,96877.0,0.0824]
[1736886699358,0.14038692,96878.0,96877.0,0.0844]
[1736886699761,0.14038692,96878.0,96877.0,0.0824]
[1736886699762,0.15071236,96878.0,96877.0,0.0824]
[1736886700219,0.01316,96878.0,96877.0,0.0824]
[1736886701290,0.007,96878.0,96877.0,0.0824]
[1736886701434,0.0736321,96878.0,96877.0,0.0824]
[1736886703158,0.03,96878.0,96877.0,0.0824]
[1736886704142,0.007,96878.0,96877.0,0.0824]
[1736886706094,0.13551723,96878.0,96877.0,0.0824]
[1736886706309,0.13422692,96878.0,96877.0,0.0824]
[1736886707895,0.229447,96877.0,96875.0,0.00194105]
[1736886708088,0.12851733,96876.0,96875.0,0.00194105]
[1736886708818,0.12851747,96876.0,96875.0,0.00194105]
[1736886710518,0.13451747,96876.0,96875.0,0.00194105]
[1736886710695,0.12851747,96876.0,96875.0,0.00194105]
[1736886710896,0.21391752,96876.0,96875.0,0.00194105]
[1736886711252,0.37091752,96876.0,96875.0,0.00194105]
[1736886711418,0.36962697,96876.0,96875.0,0.00194105]
[1736886714213,0.36962697,96876.0,96875.0,0.00184105]
[1736886719757,0.46962697,96876.0,96875.0,0.00184105]
[1736886721007,0.46262697,96876.0,96875.0,0.00184105]
[1736886721207,0.47162697,96876.0,96875.0,0.00184105]
[1736886721432,0.80384333,96876.0,96875.0,0.00184105]
[1736886721815,0.81684333,96876.0,96875.0,0.00184105]
[1736886722332,0.81284333,96876.0,96875.0,0.00184105]
[1736886722740,0.81284333,96876.0,96875.0,5e-08]
[1736886722956,1.03994333,96876.0,96875.0,5e-08]
[1736886723613,1.03994333,96876.0,96872.0,4e-07]
[1736886723614,0.35,96873.0,96872.0,4e-07]
[1736886723827,0.35,96873.0,96862.0,0.00179025]
[1736886723828,0.373,96863.0,96862.0,0.00179025]
[1736886723998,0.47722692,96863.0,96862.0,0.00185672]
[1736886724629,0.81844328,96863.0,96862.0,0.00185672]
[1736886724920,0.95454328,96863.0,96862.0,7.2e-07]
[1736886725139,0.95616614,96863.0,96862.0,7.2e-07]
[1736886725341,1.06339306,96863.0,96862.0,7.2e-07]
[1736886725876,1.54105667,96863.0,96862.0,7.2e-07]
[1736886726384,1.54105667,96863.0,96839.0,0.00179319]
[1736886726385,0.659911,96847.0,96846.0,3.5e-07]
[1736886726592,0.579526,96840.0,96839.0,1.19e-06]
[1736886726807,0.579526,96840.0,96812.0,0.045]
[1736886726808,0.356583,96813.0,96812.0,0.0788]
[1736886727006,0.173,96812.0,96799.0,0.0788]
[1736886727211,0.27851831,96812.0,96799.0,0.0788]
[1736886727413,0.37722692,96812.0,96799.0,0.0788]
[1736886727678,0.1,96805.0,96787.0,0.0787543]
[1736886727849,0.229637,96788.0,96787.0,0.0787543]
[1736886728055,0.206652,96781.0,96780.0,0.09273835]
[1736886728258,0.206652,96781.0,96780.0,0.00049499]
[1736886728259,0.229652,96781.0,96780.0,0.00049499]
[1736886728458,0.33387892,96781.0,96780.0,0.00049499]
[1736886729025,0.023,96780.0,96778.0,0.00024929]
[1736886729192,0.33517476,96779.0,96778.0,0.00035156]
[1736886729399,0.33388292,96779.0,96778.0,0.00035156]
[1736886729824,0.48388292,96779.0,96778.0,0.00035156]
[1736886730125,0.206684,96766.0,96765.0,0.01069556]
[1736886730352,0.229684,96766.0,96765.0,0.01084428]
[1736886730823,0.229684,96766.0,96765.0,0.08964428]
[1736886733013,0.231684,96766.0,96765.0,0.08964428]
[1736886734051,0.025,96766.0,96765.0,0.08964428]
[1736886735858,0.12922692,96766.0,96765.0,0.08964428]
[1736886736027,0.12922692,96766.0,96765.0,0.01084428]
[1736886736232,0.18552197,96766.0,96765.0,0.01084428]
[1736886736651,0.12922692,96766.0,96765.0,0.01084428]
[1736886737081,0.03116,96766.0,96765.0,0.01084428]
[1736886737284,0.02916,96766.0,96765.0,0.01084428]
[1736886737728,0.032,96766.0,96765.0,0.01084428]